fUSD/lending_fUSD_20240517
["ID","MTS","AMOUNT","RATE_DAILY","PERIOD"]
[327273139,1715953854358,-266.947232,0.00012328,2]
[327273140,1715953854367,-500.0,0.00012328,2]
[327273143,1715953854377,-500.0,0.00012328,2]
[327273145,1715953854386,-500.0,0.00012328,2]
[327273147,1715953854396,-500.0,0.00012328,2]
[327273149,1715953854406,-500.0,0.00012328,2]
[327273151,1715953854415,-688.86620893,0.00012377,2]
[327273153,1715953854424,-266.947232,0.00012522,2]
[327273155,1715953854434,-266.947239,0.00012579,2]
[327273157,1715953854443,-374.270463,0.00012678,2]
[327273159,1715953854453,-1485.41110864,0.00012678,2]
[327273161,1715953854462,-5631.79915091,0.00013,2]
[327273163,1715953854474,-10000.0,0.00013,2]
[327273165,1715953854485,-319.50316463,0.00013,2]
[327273168,1715953854496,-371.88291753,0.00013,2]
[327273170,1715953854508,-1324.8,0.00013,2]
[327273172,1715953854520,-234152.72003561,0.00013,2]
[327273177,1715953854552,-500.0,0.00012328,2]
[327273179,1715953854561,-1772.4580748,0.00013,2]
[327273182,1715953854584,-92.01435,0.00013,2]
[327273184,1715953854597,-516.2379924,0.00013,2]
[327273187,1715953854608,-454.68489641,0.00013,2]
[327273189,1715953854622,-208978.27418409,0.00013,2]
[327273191,1715953854634,-2744.70766199,0.00013,2]
[327273199,1715953854704,-500.0,0.00012328,2]
[327273201,1715953854714,-219.84129831,0.00012478,2]
[327273204,1715953854726,-469.02491062,0.00012478,2]
[327273206,1715953854736,-6092.20756685,0.00013,2]
[327273841,1715953861659,157.83487896,8.035e-05,2]
[327273988,1715954344690,127411.59244294,8.035e-05,2]
[327273989,1715954346214,560.64231603,8.035e-05,2]
[327273990,1715954348168,7515.37642379,8.035e-05,2]
[327273991,1715954353937,20344.55473601,8.035e-05,2]
[327273992,1715954362016,560.64231603,8.035e-05,2]
[327273993,1715954362688,547358.28128245,8.035e-05,2]
[327273994,1715954363414,2546.70033184,6.026e-05,2]
[327273995,1715954364385,1377.29078847,8.035e-05,2]
[327273996,1715954369485,789.12,8.691e-05,2]
[327273997,1715954372129,7515.37642379,8.035e-05,2]
[327273998,1715954373866,20210.93649759,8.035e-05,2]
[327273999,1715954382684,123962.58055658,8.035e-05,2]
[327274000,1715954385327,2546.70033184,6.026e-05,2]
[327274001,1715954386359,1377.29078847,8.035e-05,2]
[327274002,1715954391852,16191.06844251,8.035e-05,2]
[327274003,1715954394128,7515.37642379,8.035e-05,2]
[327274004,1715954396029,560.64231603,8.035e-05,2]
[327274005,1715954402413,471.1704385,8.035e-05,2]
[327274006,1715954405326,2546.70033184,6.026e-05,2]
[327274007,1715954416133,3808.6882732,8.035e-05,2]
[327274008,1715954418019,560.45555907,8.035e-05,2]
[327274009,1715954423325,913.33901108,6.026e-05,2]
[327274020,1715954938043,749.66,8.219e-05,2]
[327274023,1715955032557,325.40851784,8.219e-05,2]
[327274024,1715955034176,-643.21413352,9.32e-05,2]
[327274027,1715955034186,-5306.78586648,9.321e-05,2]
[327274029,1715955034198,-756.03810701,9.321e-05,2]
[327274032,1715955034209,-803.60000004,9.321e-05,2]
[327274034,1715955034221,-36431.37183769,9.321e-05,2]
[327274035,1715955034231,-344.33524362,9.321e-05,2]
[327274036,1715955034241,-152.258138,9.322e-05,2]
[327274037,1715955034251,-96352.34919241,9.322e-05,2]
[327274038,1715955034262,-1457.69298297,9.322e-05,2]
[327274039,1715955034273,-64543.68783659,9.322e-05,2]
[327274040,1715955034285,-415.09721781,9.322e-05,2]
[327274041,1715955034464,-503115.03335222,9.322e-05,2]
[327274042,1715955034476,-1204.97401448,9.417e-05,2]
[327274043,1715955034486,-150.0,9.767e-05,2]
[327274044,1715955034496,-11661.12437608,9.769e-05,2]
[327274045,1715955034509,-4714.83072392,9.769e-05,2]
[327274046,1715955034519,-1827.42,9.907e-05,2]
[327274047,1715955034528,-250.0,9.922e-05,2]
[327274048,1715955034538,-634.76,9.941e-05,2]
[327274049,1715955034548,-489.50196776,9.969e-05,2]
[327274050,1715955034557,-289.57690518,9.97e-05,2]
[327274051,1715955034567,-247.69959989,9.97e-05,2]
[327274052,1715955034579,-5018.47744408,9.97e-05,2]
[327274053,1715955034589,-409.50018805,0.0001,2]
[327274054,1715955034599,-548.73487624,0.0001,2]
[327274055,1715955034609,-422.55045776,0.0001,2]
[327274056,1715955034620,-474.85,0.0001,2]
[327274057,1715955034629,-1500.0,0.00010334,2]
[327274058,1715955034639,-23900.0,0.00010352,2]
[327274059,1715955034648,-422.55045772,0.00010375,2]
[327274060,1715955034658,-163.36,0.00010403,2]
[327274061,1715955034668,-243.18,0.00010411,2]
[327274062,1715955034678,-243.18,0.00010439,2]
[327274063,1715955034687,-243.18,0.00010468,2]
[327274064,1715955034697,-749.66,0.00010472,2]
[327274065,1715955034706,-243.18,0.00010497,2]
[327274066,1715955034716,-243.18,0.00010525,2]
[327274067,1715955034726,-243.18,0.00010554,2]
[327274068,1715955034736,-243.18,0.00010582,2]
[327274069,1715955034745,-243.18,0.00010611,2]
[327274070,1715955034756,-243.18,0.00010639,2]
[327274071,1715955034765,-243.18,0.00010668,2]
[327274072,1715955034774,-243.18,0.00010696,2]
[327274073,1715955034784,-243.18,0.00010725,2]
[327274074,1715955034793,-210.0,0.00010743,2]
[327274075,1715955034802,-243.18,0.00010753,2]
[327274076,1715955034812,-243.18,0.00010782,2]
[327274077,1715955034821,-243.18,0.00010811,2]
[327274078,1715955034831,-243.18,0.00010839,2]
[327274079,1715955034840,-422.55045772,0.00010849,2]
[327274080,1715955034849,-243.18,0.00010868,2]
[327274081,1715955034859,-243.18,0.00010896,2]
[327274082,1715955034870,-243.18,0.00010925,2]
[327274083,1715955034879,-243.18,0.00010953,2]
[327274084,1715955034888,-1293.45,0.00010959,2]
[327274085,1715955034897,-264.12,0.0001096,2]
[327274086,1715955034906,-264.12,0.0001096,2]
[327274087,1715955034917,-264.12,0.0001096,2]
[327274088,1715955034926,-200.0,0.00011,2]
[327274089,1715955034936,-198.88015173,0.00011,2]
[327274090,1715955034946,-491.5,0.00011251,2]
[327274091,1715955034955,-422.55045772,0.00011324,2]
[327274092,1715955034964,-574.23365317,0.00011698,2]
[327274093,1715955034975,-163.36,0.00011703,2]
[327274094,1715955034987,-422.55045772,0.00011798,2]
[327274095,1715955034996,-152.39850023,0.00011798,2]
[327274096,1715955035006,-542.7132076,0.000118,2]
[327274097,1715955035017,-171.66,0.00011849,2]
[327274098,1715955035027,-172.4746835,0.0001188,2]
[327274099,1715955035036,-264.12,0.00011888,2]
[327274100,1715955035046,-500.9494393,0.00011897,2]
[327274101,1715955035056,-199887.94342937,0.00011898,2]
[327274102,1715955035069,-295.44814184,0.00011898,2]
[327274103,1715955035080,-359.16532702,0.00011898,2]
[327274104,1715955035092,-6448.94639204,0.00011898,2]
[327274105,1715955035102,-542.71320756,0.000119,2]
[327274106,1715955035111,-264.12,0.00011911,2]
[327274107,1715955035125,-18033.32804928,0.0001192,2]
[327274108,1715955035136,-188958.17524098,0.0001192,2]
[327274109,1715955035146,-2500.0,0.00012,2]
[327274110,1715955035155,-3825.14001968,0.00012,2]
[327274111,1715955035164,-542.71320756,0.00012,2]
[327274112,1715955035174,-264.12,0.00012033,2]
[327274113,1715955035184,-46484.66148834,0.00012043,2]
[327274115,1715955038470,-160506.84180192,0.00012043,2]
[327274116,1715955038481,-1505.25631873,0.00012044,7]
[327274117,1715955038491,-150.0,0.00012055,2]
[327274118,1715955038502,-150.0,0.00012055,2]
[327274119,1715955038511,-150.0,0.00012055,2]
[327274120,1715955038522,-150.0,0.00012055,2]
[327274121,1715955038532,-152.39850019,0.00012074,2]
[327274122,1715955038543,-542.71320756,0.000121,2]
[327274123,1715955038553,-3610.044,0.00012103,2]
[327274124,1715955038563,-264.12,0.00012119,2]
[327274125,1715955038573,-10000.0,0.00012129,2]
[327274126,1715955038583,-264.12,0.00012155,2]
[327274127,1715955038593,-206991.50329026,0.00012165,2]
[327274128,1715955038603,-542.71320756,0.000122,2]
[327274129,1715955038612,-198.67192209,0.00012228,2]
[327274130,1715955038623,-5913.0,0.00012259,2]
[327274131,1715955038633,-11963.59,0.00012259,2]
[327274132,1715955038642,-5751.0,0.00012259,2]
[327274133,1715955038652,-264.0,0.00012259,2]
[327274134,1715955038662,-264.12,0.00012278,2]
[327274135,1715955038673,-206991.50329026,0.00012288,2]
[327274136,1715955038683,-542.71320756,0.000123,2]
[327274137,1715955038692,-183.502474,0.00012315,2]
[327274138,1715955038702,-308.4889,0.00012315,2]
[327274139,1715955038711,-184.570639,0.00012315,2]
[327274140,1715955038720,-264.12,0.00012318,2]
[327274141,1715955038730,-3738.243,0.00012328,2]
[327274142,1715955038739,-187.02,0.00012328,2]
[327274143,1715955038749,-263.13,0.00012328,2]
[327274144,1715955038758,-270.11,0.00012328,2]
[327274145,1715955038767,-320.98789404,0.00012328,2]
[327274146,1715955038777,-415.94,0.00012328,2]
[327274147,1715955038786,-381.8,0.00012328,2]
[327274148,1715955038795,-500.0,0.00012328,2]
[327274149,1715955038805,-500.0,0.00012328,2]
[327274150,1715955038814,-500.0,0.00012328,2]
[327274151,1715955038823,-500.0,0.00012328,2]
[327274152,1715955038833,-500.0,0.00012328,2]
[327274153,1715955038842,-500.0,0.00012328,2]
[327274154,1715955038851,-500.0,0.00012328,2]
[327274155,1715955038861,-500.0,0.00012328,2]
[327274156,1715955038870,-585.48543723,0.00012328,2]
[327274157,1715955038882,-500.0,0.00012328,2]
[327274158,1715955038891,-424.82,0.00012328,2]
[327274159,1715955038900,-296.48075596,0.00012328,2]
[327274160,1715955038910,-500.0,0.00012328,2]
[327274161,1715955038919,-500.0,0.00012328,2]
[327274162,1715955038928,-446.3284007,0.00012328,2]
[327274163,1715955038937,-631.14,0.00012328,2]
[327274164,1715955038947,-500.0,0.00012328,2]
[327274165,1715955038956,-501.23757639,0.00012328,2]
[327274166,1715955038965,-500.0,0.00012328,2]
[327274167,1715955038975,-384.89,0.00012328,2]
[327274168,1715955038988,-155.0,0.00012328,2]
[327274169,1715955038997,-500.0,0.00012328,2]
[327274170,1715955039006,-209.85,0.00012328,2]
[327274171,1715955039016,-376.68,0.00012328,2]
[327274172,1715955039025,-451.94566684,0.00012328,2]
[327274173,1715955039035,-287.94,0.00012328,2]
[327274174,1715955039044,-153.8,0.00012328,2]
[327274176,1715955039055,-176.48744636,0.00012328,2]
[327274178,1715955039066,-500.0,0.00012328,2]
[327274180,1715955039076,-500.0,0.00012328,2]
[327274182,1715955039085,-500.0,0.00012328,2]
[327274184,1715955039095,-500.0,0.00012328,2]
[327274186,1715955039104,-500.0,0.00012328,2]
[327274188,1715955039114,-499.10795404,0.00012328,2]
[327274190,1715955039123,-552.53707672,0.00012328,2]
[327274192,1715955039139,-500.0,0.00012328,2]
[327274194,1715955039150,-500.0,0.00012328,2]
[327274196,1715955039160,-500.0,0.00012328,2]
[327274198,1715955039169,-500.0,0.00012328,2]
[327274200,1715955039179,-226.88,0.00012328,2]
[327274202,1715955039190,-641.2,0.00012328,2]
[327274204,1715955039199,-543.8904758,0.00012328,2]
[327274206,1715955039209,-500.0,0.00012328,2]
[327274208,1715955039219,-305.41,0.00012328,2]
[327274210,1715955039229,-500.0,0.00012328,2]
[327274212,1715955039239,-500.0,0.00012328,2]
[327274214,1715955039248,-500.0,0.00012328,2]
[327274216,1715955039258,-500.0,0.00012328,2]
[327274218,1715955039268,-500.0,0.00012328,2]
[327274220,1715955039278,-538.04172805,0.00012328,2]
[327274222,1715955039288,-500.0,0.00012328,2]
[327274225,1715955039298,-500.0,0.00012328,2]
[327274227,1715955039307,-500.0,0.00012328,2]
[327274229,1715955039317,-500.0,0.00012328,2]
[327274231,1715955039326,-500.0,0.00012328,2]
[327274232,1715955039335,-501.28804253,0.00012328,2]
[327274235,1715955039345,-500.0,0.00012328,2]
[327274237,1715955039354,-500.0,0.00012328,2]
[327274239,1715955039363,-500.0,0.00012328,2]
[327274241,1715955039373,-500.0,0.00012328,2]
[327274243,1715955039387,-500.0,0.00012328,2]
[327274245,1715955039396,-500.0,0.00012328,2]
[327274247,1715955039405,-500.0,0.00012328,2]
[327274248,1715955039414,-500.0,0.00012328,2]
[327274250,1715955039423,-259.73,0.00012328,2]
[327274252,1715955039433,-500.0,0.00012328,2]
[327274254,1715955039443,-500.0,0.00012328,2]
[327274257,1715955039452,-500.0,0.00012328,2]
[327274258,1715955039461,-500.0,0.00012328,2]
[327274260,1715955039471,-500.0,0.00012328,2]
[327274262,1715955039481,-500.37932806,0.00012328,2]
[327274265,1715955039491,-500.0,0.00012328,2]
[327274267,1715955039500,-500.0,0.00012328,2]
[327274269,1715955039509,-625.06,0.00012328,2]
[327274271,1715955039518,-500.0,0.00012328,2]
[327274273,1715955039530,-573.66,0.00012328,2]
[327274275,1715955039539,-500.0,0.00012328,2]
[327274277,1715955039548,-535.98,0.00012328,2]
[327274279,1715955039557,-500.0,0.00012328,2]
[327274281,1715955039566,-271.79,0.00012328,2]
[327274283,1715955039576,-500.0,0.00012328,2]
[327274285,1715955039585,-548.34130469,0.00012328,2]
[327274287,1715955039595,-500.0,0.00012328,2]
[327274289,1715955039604,-311.18445338,0.00012328,2]
[327274291,1715955039614,-500.0,0.00012328,2]
[327274293,1715955039623,-500.0,0.00012328,2]
[327274295,1715955039635,-500.0,0.00012328,2]
[327274297,1715955039644,-237.16559782,0.00012328,2]
[327274299,1715955039653,-500.0,0.00012328,2]
[327274301,1715955039662,-500.0,0.00012328,2]
[327274303,1715955039672,-500.0,0.00012328,2]
[327274305,1715955039682,-500.0,0.00012328,2]
[327274307,1715955039691,-500.0,0.00012328,2]
[327274309,1715955039700,-500.0,0.00012328,2]
[327274311,1715955039709,-508.48077858,0.00012328,2]
[327274313,1715955039718,-607.10162436,0.00012328,2]
[327274315,1715955039728,-500.0,0.00012328,2]
[327274317,1715955039738,-500.0,0.00012328,2]
[327274319,1715955039747,-367.19,0.00012328,2]
[327274321,1715955039755,-500.0,0.00012328,2]
[327274323,1715955039764,-500.0,0.00012328,2]
[327274325,1715955039773,-500.0,0.00012328,2]
[327274327,1715955039783,-500.0,0.00012328,2]
[327274329,1715955039792,-500.0,0.00012328,2]
[327274331,1715955039802,-500.0,0.00012328,2]
[327274333,1715955039811,-500.0,0.00012328,2]
[327274335,1715955039820,-500.0,0.00012328,2]
[327274337,1715955039829,-500.0,0.00012328,2]
[327274339,1715955039839,-580.78,0.00012328,2]
[327274341,1715955039848,-500.0,0.00012328,2]
[327274343,1715955039858,-322.31,0.00012328,2]
[327274345,1715955039867,-500.0,0.00012328,2]
[327274347,1715955039877,-500.0,0.00012328,2]
[327274349,1715955039886,-500.0,0.00012328,2]
[327274351,1715955039896,-247.15,0.00012328,2]
[327274353,1715955039905,-500.0,0.00012328,2]
[327274355,1715955039915,-160.64,0.00012328,2]
[327274357,1715955039924,-500.0,0.00012328,2]
[327274359,1715955039933,-166.54,0.00012328,2]
[327274361,1715955039943,-629.6,0.00012328,2]
[327274362,1715955039952,-500.0,0.00012328,2]
[327274363,1715955039962,-500.0,0.00012328,2]
[327274364,1715955039972,-500.0,0.00012328,2]
[327274365,1715955039986,-395.77,0.00012328,2]
[327274366,1715955039996,-500.0,0.00012328,2]
[327274367,1715955040005,-383.19089442,0.00012328,2]
[327274368,1715955040015,-500.0,0.00012328,2]
[327274369,1715955040025,-500.0,0.00012328,2]
[327274370,1715955040035,-500.0,0.00012328,2]
[327274371,1715955040044,-334.19,0.00012328,2]
[327274372,1715955040054,-500.0,0.00012328,2]
[327274373,1715955040065,-278.22124218,0.00012328,2]
[327274374,1715955040074,-500.0,0.00012328,2]
[327274376,1715955040084,-500.0,0.00012328,2]
[327274378,1715955040093,-313.38,0.00012328,2]
[327274380,1715955040103,-500.0,0.00012328,2]
[327274382,1715955040112,-212.09,0.00012328,2]
[327274384,1715955040121,-500.0,0.00012328,2]
[327274387,1715955040133,-500.0,0.00012328,2]
[327274390,1715955040142,-500.0,0.00012328,2]
[327274393,1715955040152,-500.0,0.00012328,2]
[327274396,1715955040162,-500.0,0.00012328,2]
[327274399,1715955040172,-500.0,0.00012328,2]
[327274402,1715955040183,-500.0,0.00012328,2]
[327274405,1715955040192,-500.0,0.00012328,2]
[327274408,1715955040203,-500.0,0.00012328,2]
[327274411,1715955040213,-500.0,0.00012328,2]
[327274414,1715955040223,-500.0,0.00012328,2]
[327274417,1715955040232,-503.46,0.00012328,2]
[327274420,1715955040242,-500.0,0.00012328,2]
[327274423,1715955040252,-500.0,0.00012328,2]
[327274426,1715955040262,-476.22,0.00012328,2]
[327274429,1715955040271,-500.0,0.00012328,2]
[327274432,1715955040281,-500.0,0.00012328,2]
[327274435,1715955040290,-500.0,0.00012328,2]
[327274438,1715955040299,-450.21,0.00012328,2]
[327274441,1715955040309,-444.20935944,0.00012328,2]
[327274444,1715955040319,-500.0,0.00012328,2]
[327274447,1715955040328,-500.0,0.00012328,2]
[327274450,1715955040337,-150.0,0.00012328,2]
[327274452,1715955040346,-500.0,0.00012328,2]
[327274456,1715955040356,-500.0,0.00012328,2]
[327274459,1715955040365,-500.0,0.00012328,2]
[327274461,1715955040376,-150.0,0.00012328,2]
[327274464,1715955040385,-150.0,0.00012328,2]
[327274467,1715955040394,-150.0,0.00012328,2]
[327274470,1715955040403,-150.0,0.00012328,2]
[327274473,1715955040412,-500.0,0.00012328,2]
[327274476,1715955040422,-500.0,0.00012328,2]
[327274479,1715955040431,-500.0,0.00012328,2]
[327274482,1715955040441,-500.0,0.00012328,2]
[327274485,1715955040450,-500.0,0.00012328,2]
[327274487,1715955040459,-500.0,0.00012328,2]
[327274489,1715955040469,-500.0,0.00012328,2]
[327274491,1715955040479,-500.0,0.00012328,2]
[327274493,1715955040488,-500.0,0.00012328,2]
[327274495,1715955040498,-500.0,0.00012328,2]
[327274497,1715955040507,-500.0,0.00012328,2]
[327274499,1715955040516,-220.50553212,0.00012328,2]
[327274501,1715955040525,-519.09381432,0.00012328,2]
[327274503,1715955040535,-500.0,0.00012328,2]
[327274505,1715955040545,-500.0,0.00012328,2]
[327274507,1715955040554,-500.0,0.00012328,2]
[327274509,1715955040564,-500.0,0.00012328,2]
[327274511,1715955040574,-500.0,0.00012328,2]
[327274513,1715955040583,-500.0,0.00012328,2]
[327274515,1715955040593,-500.0,0.00012328,2]
[327274517,1715955040603,-500.0,0.00012328,2]
[327274519,1715955040612,-500.0,0.00012328,2]
[327274521,1715955040622,-500.0,0.00012328,2]
[327274523,1715955040634,-500.0,0.00012328,2]
[327274525,1715955040644,-500.0,0.00012328,2]
[327274527,1715955040654,-500.0,0.00012328,2]
[327274529,1715955040663,-500.0,0.00012328,2]
[327274532,1715955040674,-500.0,0.00012328,2]
[327274533,1715955040683,-500.0,0.00012328,2]
[327274535,1715955040692,-500.0,0.00012328,2]
[327274538,1715955040702,-569.54,0.00012328,2]
[327274540,1715955040712,-500.0,0.00012328,2]
[327274541,1715955040721,-500.0,0.00012328,2]
[327274544,1715955040731,-500.0,0.00012328,2]
[327274546,1715955040740,-500.0,0.00012328,2]
[327274547,1715955040749,-500.0,0.00012328,2]
[327274550,1715955040758,-500.0,0.00012328,2]
[327274551,1715955040767,-500.0,0.00012328,2]
[327274553,1715955040777,-500.0,0.00012328,2]
[327274555,1715955040787,-500.0,0.00012328,2]
[327274558,1715955040796,-500.0,0.00012328,2]
[327274559,1715955040805,-500.0,0.00012328,2]
[327274562,1715955040815,-500.0,0.00012328,2]
[327274564,1715955040824,-500.0,0.00012328,2]
[327274566,1715955040834,-500.0,0.00012328,2]
[327274568,1715955040844,-500.0,0.00012328,2]
[327274587,1715955041030,-500.0,0.00012328,2]
[327274590,1715955041040,-500.0,0.00012328,2]
[327274592,1715955041050,-500.0,0.00012328,2]
[327274594,1715955041060,-500.0,0.00012328,2]
[327274596,1715955041070,-500.0,0.00012328,2]
[327274598,1715955041081,-500.0,0.00012328,2]
[327274600,1715955041090,-500.0,0.00012328,2]
[327274602,1715955041099,-500.0,0.00012328,2]
[327274604,1715955041109,-500.0,0.00012328,2]
[327274606,1715955041118,-500.0,0.00012328,2]
[327274608,1715955041129,-500.0,0.00012328,2]
[327274610,1715955041138,-500.0,0.00012328,2]
[327274612,1715955041148,-500.0,0.00012328,2]
[327274614,1715955041158,-500.0,0.00012328,2]
[327274616,1715955041167,-500.0,0.00012328,2]
[327274618,1715955041176,-500.0,0.00012328,2]
[327274620,1715955041186,-500.0,0.00012328,2]
[327274622,1715955041196,-500.0,0.00012328,2]
[327274624,1715955041205,-500.0,0.00012328,2]
[327274626,1715955041215,-500.0,0.00012328,2]
[327274628,1715955041225,-500.0,0.00012328,2]
[327274631,1715955041235,-500.0,0.00012328,2]
[327274633,1715955041244,-500.0,0.00012328,2]
[327274634,1715955041255,-500.0,0.00012328,2]
[327274636,1715955041265,-500.0,0.00012328,2]
[327274639,1715955041275,-500.0,0.00012328,2]
[327274641,1715955041285,-500.0,0.00012328,2]
[327274643,1715955041295,-500.0,0.00012328,2]
[327274645,1715955041304,-500.0,0.00012328,2]
[327274647,1715955041314,-500.0,0.00012328,2]
[327274649,1715955041323,-500.0,0.00012328,2]
[327274651,1715955041332,-500.0,0.00012328,2]
[327274653,1715955041341,-500.0,0.00012328,2]
[327274655,1715955041350,-500.0,0.00012328,2]
[327274657,1715955041360,-500.0,0.00012328,2]
[327274659,1715955041369,-500.0,0.00012328,2]
[327274661,1715955041382,-500.0,0.00012328,2]
[327274663,1715955041391,-500.0,0.00012328,2]
[327274665,1715955041400,-500.0,0.00012328,2]
[327274667,1715955041409,-507.17688149,0.00012328,2]
[327274668,1715955041418,-500.0,0.00012328,2]
[327274670,1715955041427,-500.0,0.00012328,2]
[327274672,1715955041436,-500.0,0.00012328,2]
[327274674,1715955041445,-500.0,0.00012328,2]
[327274676,1715955041454,-500.0,0.00012328,2]
[327274678,1715955041463,-500.0,0.00012328,2]
[327274680,1715955041472,-500.0,0.00012328,2]
[327274682,1715955041481,-500.0,0.00012328,2]
[327274684,1715955041491,-500.0,0.00012328,2]
[327274686,1715955041500,-500.0,0.00012328,2]
[327274688,1715955041509,-500.0,0.00012328,2]
[327274690,1715955041519,-500.0,0.00012328,2]
[327274692,1715955041529,-500.0,0.00012328,2]
[327274694,1715955041539,-500.0,0.00012328,2]
[327274696,1715955041548,-151.0,0.00012328,2]
[327274698,1715955041557,-151.0,0.00012328,2]
[327274700,1715955041566,-500.0,0.00012328,2]
[327274702,1715955041575,-500.0,0.00012328,2]
[327274704,1715955041585,-500.0,0.00012328,2]
[327274706,1715955041594,-500.0,0.00012328,2]
[327274708,1715955041603,-500.0,0.00012328,2]
[327274710,1715955041613,-423.49271857,0.00012328,2]
[327274712,1715955041623,-500.0,0.00012328,2]
[327274715,1715955041635,-500.0,0.00012328,2]
[327274717,1715955041644,-500.0,0.00012328,2]
[327274719,1715955041653,-500.0,0.00012328,2]
[327274720,1715955041662,-500.0,0.00012328,2]
[327274723,1715955041671,-500.0,0.00012328,2]
[327274724,1715955041681,-500.0,0.00012328,2]
[327274726,1715955041690,-500.0,0.00012328,2]
[327274728,1715955041699,-500.0,0.00012328,2]
[327274730,1715955041710,-528.96134079,0.00012328,2]
[327274732,1715955041719,-500.0,0.00012328,2]
[327274734,1715955041728,-500.0,0.00012328,2]
[327274737,1715955041737,-500.0,0.00012328,2]
[327274738,1715955041747,-500.0,0.00012328,2]
[327274739,1715955041756,-500.0,0.00012328,2]
[327274740,1715955041766,-500.0,0.00012328,2]
[327274741,1715955041775,-500.0,0.00012328,2]
[327274743,1715955041784,-500.0,0.00012328,2]
[327274745,1715955041794,-500.0,0.00012328,2]
[327274746,1715955041803,-500.0,0.00012328,2]
[327274747,1715955041812,-500.0,0.00012328,2]
[327274748,1715955041822,-500.0,0.00012328,2]
[327274749,1715955041831,-500.0,0.00012328,2]
[327274750,1715955041841,-500.0,0.00012328,2]
[327274751,1715955041850,-500.0,0.00012328,2]
[327274753,1715955041860,-500.0,0.00012328,2]
[327274755,1715955041869,-500.0,0.00012328,2]
[327274757,1715955041882,-500.0,0.00012328,2]
[327274759,1715955041891,-500.0,0.00012328,2]
[327274761,1715955041900,-500.0,0.00012328,2]
[327274763,1715955041909,-500.0,0.00012328,2]
[327274765,1715955041919,-500.0,0.00012328,2]
[327274767,1715955041928,-500.0,0.00012328,2]
[327274769,1715955041937,-500.0,0.00012328,2]
[327274771,1715955041947,-500.0,0.00012328,2]
[327274773,1715955041956,-500.0,0.00012328,2]
[327274775,1715955041966,-500.0,0.00012328,2]
[327274777,1715955041978,-500.0,0.00012328,2]
[327274779,1715955041989,-447.85,0.00012328,2]
[327274781,1715955041998,-500.0,0.00012328,2]
[327274783,1715955042007,-500.0,0.00012328,2]
[327274785,1715955042016,-500.0,0.00012328,2]
[327274787,1715955042027,-500.0,0.00012328,2]
[327274789,1715955042036,-500.0,0.00012328,2]
[327274791,1715955042045,-500.0,0.00012328,2]
[327274793,1715955042054,-500.0,0.00012328,2]
[327274795,1715955042065,-500.0,0.00012328,2]
[327274797,1715955042074,-500.0,0.00012328,2]
[327274799,1715955042083,-523.33309986,0.00012328,2]
[327274801,1715955042093,-500.0,0.00012328,2]
[327274803,1715955042102,-500.0,0.00012328,2]
[327274805,1715955042111,-500.0,0.00012328,2]
[327274807,1715955042120,-500.0,0.00012328,2]
[327274809,1715955042130,-500.0,0.00012328,2]
[327274811,1715955042139,-500.0,0.00012328,2]